bitfinex-derivatives/quotes_ETHF0:USTF0_20250420
["timestamp","ask_amount","ask_price","bid_price","bid_amount"]
[1745110039465,2.95299,1609.7,1609.6,1.7606]
[1745110039767,1.24276,1609.6,1609.5,3.9138]
[1745110039955,3.78906,1609.6,1609.5,3.0403]
[1745110042058,3.78906,1609.6,1609.5,4.28314]
[1745110042259,1.24272,1609.7,1609.5,4.6404]
[1745110042460,2.86712,1609.7,1609.6,1.6001]
[1745110043168,2.86712,1609.7,1609.6,3.69396]
[1745110043465,2.86712,1609.7,1609.6,2.4512]
[1745110044378,1.24276,1609.6,1609.5,4.28312]
[1745110044577,2.96036,1609.6,1609.5,4.28312]
[1745110044961,2.96036,1609.6,1609.5,6.00592]
[1745110047672,2.96036,1609.6,1609.5,3.0403]
[1745110050975,3.2078,1609.8,1609.5,3.0403]
[1745110051276,4.45045,1609.8,1609.7,1.24269]
[1745110051774,1.24265,1609.8,1609.7,2.08919]
[1745110052075,1.24265,1609.8,1609.7,4.31719]
[1745110052571,1.24259,1609.9,1609.8,1.24261]
[1745110052873,13.49420167,1610.0,1609.8,3.79874]
[1745110053177,16.47883167,1610.0,1609.8,3.79874]
[1745110053369,16.47883167,1610.0,1609.9,1.6928]
[1745110053569,12.36598167,1610.0,1609.9,1.6928]
[1745110054280,12.36598167,1610.0,1609.9,3.9208]
[1745110055780,9.15818167,1610.0,1609.9,3.9208]
[1745110055978,12.36598167,1610.0,1609.9,3.9208]
[1745110056177,12.36598167,1610.0,1609.9,2.228]
[1745110056679,6.19243,1610.0,1609.9,2.228]
[1745110057070,4.9499,1610.0,1609.8,2.527]
[1745110057270,1.24253,1609.9,1609.8,2.527]
[1745110059777,2.94423,1609.9,1609.8,0.8634]
[1745110060167,1.24284,1609.5,1609.4,18.11017836]
[1745110060469,1.24284,1609.5,1609.4,15.64967836]
[1745110060886,1.24284,1609.5,1609.4,16.89259836]
[1745110061179,2.94453,1609.6,1609.4,19.12059836]
[1745110061380,2.94453,1609.6,1609.5,1.66]
[1745110061991,1.24284,1609.5,1609.4,13.41989836]
[1745110062183,1.24284,1609.5,1609.4,15.07989836]
[1745110063673,1.24284,1609.5,1609.4,6.81372]
[1745110067379,1.24284,1609.5,1609.4,6.81364]
[1745110067880,2.94452,1609.6,1609.5,1.24284]
[1745110068082,4.11285,1609.7,1609.6,1.24276]
[1745110068384,4.11285,1609.7,1609.6,8.44256]
[1745110068586,4.11285,1609.7,1609.6,15.08996]
[1745110069287,1.24266,1609.8,1609.6,8.8472]
[1745110069585,1.24261,1609.8,1609.7,3.3877]
[1745110069885,1.24261,1609.8,1609.7,4.63039]
[1745110070186,1.24261,1609.8,1609.7,6.85839]
[1745110070389,2.93301,1609.8,1609.7,6.85839]
[1745110070686,2.93301,1609.8,1609.7,5.6157]
[1745110070888,6.14081,1609.8,1609.7,3.0933]
[1745110071090,6.14081,1609.8,1609.7,0.8653]
[1745110071789,2.93301,1609.8,1609.7,0.8653]
[1745110072086,2.93301,1609.8,1609.7,3.0933]
[1745110072785,2.93301,1609.8,1609.7,4.33599]
[1745110073086,2.93301,1609.8,1609.7,6.02869]
[1745110073278,2.93301,1609.8,1609.7,4.786]
[1745110074689,1.24261,1609.8,1609.7,4.786]
[1745110075288,2.86301,1609.8,1609.7,4.786]
[1745110077895,2.86301,1609.8,1609.7,6.02869]
[1745110079595,2.86301,1609.8,1609.7,4.786]
[1745110079796,2.86301,1609.8,1609.7,6.02869]
[1745110080095,2.86301,1609.8,1609.7,3.80069]
[1745110080494,2.86301,1609.8,1609.7,2.558]
[1745110081596,4.11285,1609.9,1609.8,1.24261]
[1745110081793,10.62386167,1610.0,1609.9,1.24253]
[1745110081995,12.33366167,1610.0,1609.9,1.24253]
[1745110082189,12.33366167,1610.0,1609.9,5.10423]
[1745110082996,12.33366167,1610.0,1609.9,3.8617]
[1745110083194,12.33366167,1610.0,1609.9,2.228]
[1745110084101,6.16011,1610.0,1609.9,2.228]
[1745110085303,6.16011,1610.0,1609.9,3.9747]
[1745110086001,6.16011,1610.0,1609.9,2.228]
[1745110086401,6.16011,1610.0,1609.9,3.9834]
[1745110086904,6.16011,1610.0,1609.9,5.22593]
[1745110087303,6.16011,1610.0,1609.9,3.9834]
[1745110090203,6.16011,1610.0,1609.9,5.22593]
[1745110090405,6.16011,1610.0,1609.9,3.9834]
[1745110091907,6.16011,1610.0,1609.9,5.22593]
[1745110092510,6.16011,1610.0,1609.9,3.9834]
[1745110095214,4.45031,1610.0,1609.9,5.22593]
[1745110096210,4.45031,1610.0,1609.9,3.9834]
[1745110096415,4.45031,1610.0,1609.9,5.22593]
[1745110097215,4.45031,1610.0,1609.9,3.9834]
[1745110097417,4.45031,1610.0,1609.9,5.22593]
[1745110097618,16.46778783,1610.4,1609.9,5.22593]
[1745110097619,3.2078,1612.2,1610.5,3.2078]
[1745110097909,125.21626247,1611.9,1611.8,3.2078]
[1745110098116,123.97527247,1611.9,1611.8,8.75687]
[1745110099024,123.97527247,1611.9,1611.8,10.16482264]
[1745110099315,123.97527247,1611.9,1611.8,9.66020658]
[1745110099525,123.97527247,1611.9,1611.8,9.65743662]
[1745110100132,123.97527247,1611.9,1611.8,10.49851034]
[1745110100319,123.97527247,1611.9,1611.8,9.59794372]
[1745110101130,1.6709,1612.1,1611.8,9.59794372]
[1745110101331,21.6709,1612.1,1612.0,3.2078]
[1745110102031,21.6709,1612.1,1612.0,4.44871]
[1745110102826,21.6709,1612.1,1612.0,3.2078]
[1745110103424,22.91174,1612.1,1612.0,3.2078]
[1745110103619,21.6709,1612.1,1612.0,3.2078]
[1745110104134,23.8989,1612.1,1612.0,3.2078]
[1745110104526,23.8989,1612.1,1612.0,4.44871]
[1745110105030,25.13974,1612.1,1612.0,3.2078]
[1745110105231,23.8989,1612.1,1612.0,3.2078]
[1745110105629,25.13974,1612.1,1612.0,3.2078]
[1745110106136,25.13974,1612.1,1612.0,4.44871]
[1745110106728,23.8989,1612.1,1612.0,4.44871]
[1745110106936,25.13974,1612.1,1612.0,3.2078]
[1745110107236,25.13974,1612.1,1612.0,4.44871]
[1745110107630,25.13974,1612.1,1612.0,3.2078]
[1745110110229,20.39205516,1612.1,1612.0,3.2078]
[1745110110431,20.39205516,1612.1,1612.0,4.44871]
[1745110111042,3.46884,1612.1,1612.0,4.44871]
[1745110111241,20.39205516,1612.1,1612.0,4.44871]
[1745110114146,20.39205516,1612.1,1612.0,3.2078]
[1745110114335,12.47946943,1612.1,1612.0,3.2078]
[1745110114635,13.72030943,1612.1,1612.0,3.2078]
[1745110115242,15.94830943,1612.1,1612.0,3.2078]
[1745110115437,17.61050943,1612.1,1612.0,3.2078]
[1745110115742,1.24099,1611.9,1611.8,3.2078]
[1745110116145,17.61065943,1611.9,1611.8,3.2078]
[1745110118255,1.24114,1611.7,1611.6,7.09317]
[1745110118445,1.24114,1611.7,1611.6,10.30097]
[1745110119448,1.24113,1611.8,1611.6,4.44897]
[1745110119634,2.97634,1611.7,1611.6,3.2078]
[1745110120033,15.45580943,1611.7,1611.6,3.2078]
[1745110121237,17.68380943,1611.7,1611.6,3.2078]
[1745110124643,17.68380943,1611.7,1611.6,4.02594736]
[1745110125352,17.68380943,1611.7,1611.6,4.92709306]
[1745110127149,15.45580943,1611.7,1611.6,4.92930182]
[1745110127347,15.45580943,1611.7,1611.6,5.50924477]
[1745110128141,17.68380943,1611.7,1611.6,5.50924477]
[1745110131951,17.68380943,1611.7,1611.6,5.50899164]
[1745110133545,17.68380943,1611.7,1611.6,2.30119164]
[1745110133752,17.68380943,1611.7,1611.6,5.50899164]
[1745110133954,17.68380943,1611.7,1611.6,5.50904071]
[1745110135254,17.68380943,1611.7,1611.6,5.50916207]
[1745110138263,17.68380943,1611.7,1611.6,5.49185494]
[1745110139864,17.68380943,1611.7,1611.6,4.91183016]
[1745110141164,17.68380943,1611.7,1611.6,5.49213446]
[1745110141957,17.68380943,1611.7,1611.6,4.91183016]
[1745110142156,21.79665943,1611.7,1611.6,1.70403016]
[1745110143068,21.79665943,1611.7,1611.6,4.91183016]
[1745110144369,21.79665943,1611.7,1611.6,5.49296684]
[1745110144760,21.79665943,1611.7,1611.6,5.49466612]
[1745110144958,21.79665943,1611.7,1611.6,4.91352957]
[1745110145160,21.79665943,1611.7,1611.6,4.02594736]
[1745110145660,21.79665943,1611.7,1611.6,5.49573379]
[1745110146370,21.79665943,1611.7,1611.6,5.49588841]
[1745110148171,21.79665943,1611.7,1611.6,5.49604942]
[1745110148969,21.79665943,1611.7,1611.6,4.6076309]
[1745110149168,21.79665943,1611.7,1611.6,4.91454326]
[1745110149366,21.79665943,1611.7,1611.6,1.70674326]
[1745110155665,21.79665943,1611.7,1611.6,1.70692219]
[1745110161278,21.79665943,1611.7,1611.6,1.70695698]
[1745110164782,1.2413,1611.5,1611.4,11.47397836]
[1745110164977,1.2413,1611.5,1611.4,15.32711144]
[1745110166280,1.2413,1611.5,1611.4,32.35121119]
[1745110167488,1.2413,1611.5,1611.4,32.35131446]
[1745110168886,5.35402,1611.7,1611.6,1.24122]
[1745110169077,4.11285,1611.7,1611.6,5.89045309]
[1745110169477,4.11285,1611.7,1611.6,9.27085635]
[1745110171783,5.35399,1611.7,1611.6,34.56113446]
[1745110172291,1.24114,1611.7,1611.6,34.56113446]
[1745110172590,1.24113,1611.8,1611.7,1.24112]
[1745110172777,1.24113,1611.8,1611.7,3.51005635]
[1745110172977,1.24113,1611.8,1611.7,2.26811146]
[1745110173180,15.94859943,1611.8,1611.7,2.26811146]
[1745110173379,15.94859943,1611.8,1611.7,1.71645675]
[1745110173580,16.79929943,1611.8,1611.7,1.71645675]
[1745110174285,18.52139943,1611.8,1611.7,1.71645675]
[1745110174473,23.52139943,1611.8,1611.7,9.1237322]
[1745110175694,23.52139943,1611.8,1611.7,8.29622894]
[1745110177793,1.2413,1611.5,1611.4,4.0251]
[1745110178090,1.2413,1611.5,1611.4,4.91248836]
[1745110178481,2.8266,1611.5,1611.4,5.73851223]
[1745110178978,2.8266,1611.5,1611.4,2.53071223]
[1745110179281,2.8266,1611.5,1611.4,5.73851223]
[1745110179679,2.8266,1611.5,1611.4,2.53074336]
[1745110179989,2.8266,1611.5,1611.4,5.73854336]
[1745110180189,5.0546,1611.5,1611.4,5.73854336]
[1745110181293,2.8266,1611.5,1611.4,5.73854336]
[1745110182795,3.6878,1611.5,1611.4,5.73854336]
[1745110184992,3.6878,1611.5,1611.4,4.85112387]
[1745110185196,3.6878,1611.5,1611.4,5.73851399]
[1745110186197,5.9158,1611.5,1611.4,5.73851399]
[1745110186896,5.9158,1611.5,1611.4,5.73842845]
[1745110187790,1.24138,1611.4,1611.3,7.04460894]
[1745110187991,1.24138,1611.4,1611.3,4.62056279]
[1745110187992,20.35064943,1611.4,1611.3,4.62056279]
[1745110188189,25.78644943,1611.4,1611.3,1.22688279]
[1745110188495,22.57864943,1611.4,1611.3,2.79e-06]
[1745110188697,25.78644943,1611.4,1611.3,2.79e-06]
[1745110188889,1.24145,1611.3,1611.2,11.10826225]
[1745110189094,9.25425,1611.3,1611.2,7.32578225]
[1745110189305,26.73371943,1611.3,1611.2,3.67389225]
[1745110189589,30.84656943,1611.3,1611.2,0.24169225]
[1745110189795,1.24168,1611.0,1610.9,0.24169225]
[1745110189985,5.35468,1611.0,1610.9,0.24169225]
[1745110190184,20.06214943,1611.0,1610.9,0.24169225]
[1745110193591,23.26994943,1611.0,1610.9,0.24169225]
[1745110193903,32.38279943,1611.0,1610.9,2.25e-06]
[1745110194394,32.38279943,1611.0,1610.5,23.85899077]
[1745110194395,1.24199,1610.6,1610.5,3.2078]
[1745110194992,3.72229,1610.6,1610.5,3.2078]
[1745110195300,5.95029,1610.6,1610.5,3.2078]
[1745110200403,3.46999,1610.6,1610.5,3.2078]
[1745110200603,3.46999,1610.6,1610.5,3.7991]
[1745110203000,3.46999,1610.6,1610.5,3.2078]
[1745110203403,18.39015943,1610.6,1610.5,3.2078]
[1745110203603,1.24215,1610.4,1610.3,0.874]
[1745110203906,5.35715,1610.4,1610.3,0.874]
[1745110204109,20.06461943,1610.4,1610.3,0.874]
[1745110204316,1.2423,1610.2,1610.1,1.7206]
[1745110204505,1.2423,1610.2,1610.1,2.5351]
[1745110204902,2.8881,1610.2,1610.1,2.5351]
[1745110205110,5.1161,1610.2,1610.1,2.5351]
[1745110205611,3.4703,1610.2,1610.1,2.5351]
[1745110206810,15.94976943,1610.2,1610.1,0.8145]
[1745110207108,17.59556943,1610.2,1610.1,0.8145]
[1745110211421,1.24238,1610.1,1610.0,3.2078]
[1745110211724,2.83108,1610.1,1610.0,3.2078]
[1745110212114,5.05908,1610.1,1610.0,3.2078]
[1745110212622,17.53854943,1610.1,1610.0,3.2078]
[1745110212924,17.53854943,1610.1,1609.6,3.2078]
[1745110212925,1.24269,1609.7,1609.6,3.2078]
[1745110213121,1.24276,1609.6,1609.5,2.5431]
[1745110213319,1.24276,1609.6,1609.5,3.32872409]
[1745110214024,2.83146,1609.6,1609.5,3.32872409]
[1745110214318,3.8167,1609.6,1609.5,4.57156409]
[1745110214525,3.8167,1609.6,1609.5,5.43253255]
[1745110214919,5.05946,1609.6,1609.5,5.43225223]
[1745110215121,5.05946,1609.6,1609.5,5.43225257]
[1745110215620,5.05946,1609.6,1609.5,5.43249717]
[1745110216019,3.47076,1609.6,1609.5,5.43249717]
[1745110216226,2.228,1609.6,1609.5,5.43249717]
[1745110217126,1.24272,1609.7,1609.6,1.24276]
[1745110217327,1.24272,1609.7,1609.6,8.30061717]
[1745110217526,1.24272,1609.7,1609.6,8.30167803]
[1745110218125,5.35863,1609.8,1609.7,1.24269]
[1745110218323,2.87089,1609.9,1609.8,1.24261]
[1745110218517,15.35035943,1609.9,1609.8,6.09053409]
[1745110218825,15.35035943,1609.9,1609.8,8.56353432]
[1745110219328,17.57835943,1609.9,1609.8,8.56353432]
[1745110220127,15.35035943,1609.9,1609.8,8.56353432]
[1745110220328,15.35035943,1609.9,1609.8,7.32092432]
[1745110221132,17.57835943,1609.9,1609.8,7.32130502]
[1745110221632,17.57835943,1609.9,1609.8,4.11350502]
[1745110221834,17.57835943,1609.9,1609.8,5.35611502]
[1745110222831,17.57835943,1609.9,1609.8,5.35648464]
[1745110223032,17.57835943,1609.9,1609.8,2.50307464]
[1745110226135,17.57835943,1609.9,1609.8,3.74568464]
[1745110226538,17.57835943,1609.9,1609.8,2.50307464]
[1745110226735,17.57835943,1609.9,1609.8,3.74568464]
[1745110226936,17.57835943,1609.9,1609.8,2.50307464]
[1745110227940,17.57835943,1609.9,1609.8,2.5038628]
[1745110228631,5.09889,1609.9,1609.8,2.5038628]
[1745110229541,17.57835943,1609.9,1609.8,2.5038628]
[1745110229741,17.57835943,1609.9,1609.8,1.6493628]
[1745110230540,17.57835943,1609.9,1609.8,1.64989641]
[1745110230932,5.09889,1609.9,1609.8,1.64989641]
[1745110231133,17.57835943,1609.9,1609.8,1.64989641]
[1745110232446,17.57835943,1609.9,1609.8,1.65066502]
[1745110236046,17.57835943,1609.9,1609.8,1.65207025]
[1745110236544,17.57835943,1609.9,1609.8,2.20412974]
[1745110236845,17.57835943,1609.9,1609.8,1.65207025]
[1745110237443,17.57835943,1609.9,1609.8,2.20414307]
[1745110238044,17.57835943,1609.9,1609.8,1.65207025]
[1745110238546,17.57835943,1609.9,1609.8,2.20427242]
[1745110238743,17.57835943,1609.9,1609.8,1.65207025]
[1745110239446,17.57835943,1609.9,1609.8,2.20436628]
[1745110239747,17.57835943,1609.9,1609.8,2.20436637]
[1745110240346,17.57835943,1609.9,1609.8,1.65207025]
[1745110240547,17.57835943,1609.9,1609.8,2.20437922]
[1745110241841,17.57835943,1609.9,1609.8,1.33793306]
[1745110242057,17.57835943,1609.9,1609.8,1.65280576]
[1745110244447,17.57835943,1609.9,1609.8,2.17605725]
[1745110244949,17.57835943,1609.9,1609.8,1.65280576]
[1745110245148,17.57835943,1609.9,1609.8,2.17605861]
[1745110245351,17.57835943,1609.9,1609.8,2.17605429]
[1745110245749,17.57835943,1609.9,1609.8,1.65280576]
[1745110245951,17.57835943,1609.9,1609.8,2.17609713]
[1745110247250,17.57835943,1609.9,1609.8,2.17654264]
[1745110247552,5.09889,1609.9,1609.8,2.17654264]
[1745110247744,5.09883,1609.9,1609.8,4.37235264]
[1745110248046,5.09883,1609.9,1609.8,6.02485264]
[1745110248754,5.09883,1609.9,1609.8,4.78224264]
[1745110249356,5.09883,1609.9,1609.8,3.12974264]
[1745110251051,5.09883,1609.9,1609.8,4.37235264]
[1745110251252,5.09883,1609.9,1609.8,3.12974264]
[1745110251451,5.09883,1609.9,1609.8,3.12965714]
[1745110252758,5.09883,1609.9,1609.8,3.12966225]
[1745110254559,5.09883,1609.9,1609.8,3.12968124]
[1745110255761,5.09883,1609.9,1609.8,3.129684]
[1745110258263,5.09883,1609.9,1609.8,3.12967257]
[1745110260063,5.09883,1609.9,1609.8,4.37228257]
[1745110260267,5.09883,1609.9,1609.8,3.12966499]
[1745110260569,5.09883,1609.9,1609.8,3.12966303]
[1745110261068,5.09883,1609.9,1609.8,4.37227303]
[1745110261265,5.09883,1609.9,1609.8,3.12966303]
[1745110261567,5.09883,1609.9,1609.8,3.12971659]
[1745110262462,5.09883,1609.9,1609.8,3.1297379]
[1745110263862,2.228,1609.9,1609.8,3.1297379]
[1745110264067,2.228,1609.9,1609.8,7.0513479]
[1745110264268,7.03285,1610.1,1609.9,1.24253]
[1745110264467,15.39946943,1610.1,1610.0,0.86761217]
[1745110264770,15.39946943,1610.1,1610.0,2.11006217]
[1745110265065,15.39946943,1610.1,1610.0,1.3908079]
[1745110265255,15.39946943,1610.1,1610.0,0.86761217]
[1745110265458,15.39946943,1610.1,1610.0,1.65323626]
[1745110266168,17.62746943,1610.1,1610.0,1.65323626]
[1745110267273,17.62746943,1610.1,1610.0,1.65259281]
[1745110267973,17.62746943,1610.1,1610.0,0.78562409]
[1745110268169,17.62746943,1610.1,1610.0,1.65258267]
[1745110268474,17.62746943,1610.1,1610.0,0.78562409]
[1745110268676,17.62746943,1610.1,1610.0,1.65257464]
[1745110268872,5.148,1610.1,1610.0,2.89502464]
[1745110269067,5.148,1610.1,1610.0,2.89502289]
[1745110269371,2.92,1610.1,1610.0,2.89502289]
[1745110269776,1.6776,1610.1,1610.0,3.41793208]
[1745110269978,1.6776,1610.1,1610.0,5.12673208]
[1745110270171,2.91998,1610.1,1610.0,5.12673208]
[1745110270371,1.6776,1610.1,1610.0,5.12673208]
[1745110272285,4.043,1610.4,1610.3,1.24222]
[1745110272490,5.7661,1610.4,1610.3,2.1091688]
[1745110272685,1.7231,1610.4,1610.3,2.89479289]
[1745110272987,1.7231,1610.4,1610.3,5.01510265]
[1745110273191,1.7231,1610.4,1610.3,4.49259289]
[1745110274182,9.1306,1610.6,1610.5,1.24207]
[1745110274183,4.9819,1610.6,1610.5,1.24207]
[1745110274389,15.14146943,1610.6,1610.5,2.89219172]
[1745110274581,16.38345943,1610.6,1610.5,2.89219172]
[1745110275985,16.38345943,1610.6,1610.5,2.02769409]
[1745110276791,15.14146943,1610.6,1610.5,2.02769409]
[1745110276994,15.14146943,1610.6,1610.5,4.49655818]
[1745110277190,15.14146943,1610.6,1610.5,4.49649499]
[1745110278293,15.14146943,1610.6,1610.5,3.63439409]
[1745110278597,16.38345943,1610.6,1610.5,3.63439409]
[1745110278891,16.38345943,1610.6,1610.5,2.02769409]
[1745110279091,15.14146943,1610.6,1610.5,2.02769409]
[1745110279292,15.14146943,1610.6,1610.5,1.24207]
[1745110280807,16.38345943,1610.6,1610.5,1.24207]
[1745110282108,15.14146943,1610.6,1610.5,1.24207]
[1745110283204,16.38345943,1610.6,1610.5,1.24207]
[1745110283418,1.24207,1610.5,1610.4,5.45268]
[1745110283711,2.92987,1610.5,1610.4,7.1001543]
[1745110283911,1.6878,1610.5,1610.4,7.1001543]
[1745110285601,1.6878,1610.5,1610.4,7.10044341]
[1745110287302,1.6878,1610.5,1610.4,7.10055756]
[1745110292616,1.6878,1610.5,1610.4,7.10118641]
[1745110293111,1.6878,1610.5,1610.4,3.89338641]
[1745110293313,1.6878,1610.5,1610.4,7.10118641]
[1745110294608,1.6878,1610.5,1610.4,7.1027805]
[1745110295914,1.6878,1610.5,1610.4,3.8949805]
[1745110296114,1.6878,1610.5,1610.4,7.1027805]
[1745110299313,2.92987,1610.5,1610.4,7.1027805]
[1745110299812,1.6878,1610.5,1610.4,7.1027805]
[1745110300213,1.6878,1610.5,1610.4,7.62496089]
[1745110302115,1.6878,1610.5,1610.4,7.62906108]
[1745110305119,1.6878,1610.5,1610.4,7.63022126]
[1745110305417,0.9389,1610.6,1610.5,1.24207]
[1745110305718,13.41836943,1610.6,1610.5,4.23904173]
[1745110305909,13.41836943,1610.6,1610.5,5.02671126]
[1745110307617,13.41836943,1610.6,1610.5,5.02704917]
[1745110307918,0.9389,1610.6,1610.5,5.02704917]
[1745110308321,1.24183,1610.9,1610.8,1.24184]
[1745110308618,15.02096943,1610.9,1610.8,2.10900395]
[1745110308819,16.26272943,1610.9,1610.8,2.89667348]
[1745110309020,16.26272943,1610.9,1610.8,4.56477348]
[1745110309414,16.26272943,1610.9,1610.8,4.56440897]
[1745110309912,15.02096943,1610.9,1610.8,4.56440897]
[1745110311520,16.26272943,1610.9,1610.8,4.56399151]
[1745110311721,16.26272943,1610.9,1610.8,2.89589151]
[1745110312217,0.49078709,1611.3,1611.2,1.24153]
[1745110312218,3.2078,1611.3,1611.2,1.24153]
[1745110312523,12.47946943,1611.3,1611.2,2.10749593]
[1745110312723,0.9439,1611.3,1611.2,2.89516546]
[1745110313114,3.1719,1611.3,1611.2,2.89516546]
[1745110313519,4.7752,1611.3,1611.2,2.89516546]
[1745110314522,26.70391943,1611.3,1611.2,0.78766953]
[1745110314721,26.70391943,1611.3,1610.9,1.2417]
[1745110314722,1.24168,1611.1,1610.9,1.2417]
[1745110314927,1.8026,1611.0,1610.9,1.24176]
[1745110315225,1.8026,1611.0,1610.9,2.10617625]
[1745110315420,11.07426943,1611.0,1610.9,10.38720492]
[1745110315618,12.71226943,1611.0,1610.9,10.38720492]
[1745110316219,14.94026943,1611.0,1610.9,10.38720492]
[1745110317527,16.18194943,1611.0,1610.9,10.38720492]
[1745110318425,14.94026943,1611.0,1610.9,2.10617625]
[1745110320320,16.18194943,1611.0,1610.9,2.10617625]
[1745110320520,16.18194943,1611.0,1610.9,2.10533927]
[1745110322527,14.94026943,1611.0,1610.9,2.10533927]
[1745110323221,12.71226943,1611.0,1610.9,2.10533927]
[1745110323532,13.95394943,1611.0,1610.9,0.86357927]
[1745110324133,16.18194943,1611.0,1610.9,0.86357927]
[1745110324433,16.18194943,1611.0,1610.9,2.10533927]
[1745110325627,16.18194943,1611.0,1610.9,2.10547277]
[1745110325836,16.18194943,1611.0,1610.9,2.10547286]
[1745110326833,14.94026943,1611.0,1610.9,2.88572522]
[1745110327733,4.7722,1611.0,1610.9,2.88572522]
[1745110328838,4.7722,1611.0,1610.9,2.88555115]
[1745110329130,4.7722,1611.0,1610.9,2.88555336]
[1745110329335,4.7722,1611.0,1610.9,2.02201236]
[1745110329632,4.7722,1611.0,1610.9,4.62055437]
[1745110329834,4.7722,1611.0,1610.9,4.62054589]
[1745110330036,4.7722,1611.0,1610.9,4.62054185]
[1745110330336,6.01388,1611.0,1610.9,2.88560863]
[1745110331433,15.28554943,1611.0,1610.9,2.88560863]
[1745110333441,14.04386943,1611.0,1610.9,2.88560863]
[1745110334138,14.04386943,1611.0,1610.9,4.63440863]
[1745110335444,14.04386943,1611.0,1610.9,5.15596705]
[1745110335733,14.04386943,1611.0,1610.9,4.63551805]
[1745110336838,14.04386943,1611.0,1610.9,5.15716944]
[1745110337439,14.04386943,1611.0,1610.9,5.15729641]
[1745110339441,14.04386943,1611.0,1610.9,5.15838974]
[1745110343639,14.04386943,1611.0,1610.9,4.29286814]
[1745110343943,14.04386943,1611.0,1610.9,5.1592865]
[1745110346741,14.04386943,1611.0,1610.9,4.29359935]
[1745110346946,14.04386943,1611.0,1610.9,5.16033323]
[1745110347746,14.04386943,1611.0,1610.9,5.16048905]
[1745110348652,14.04386943,1611.0,1610.9,5.16090451]
[1745110349651,15.28554943,1611.0,1610.9,5.16090451]
[1745110349852,15.28554943,1611.0,1610.9,2.17034451]
[1745110350049,1.24184,1610.8,1610.7,11.48573859]
[1745110350344,12.56449,1610.8,1610.7,8.48013859]
[1745110350555,17.56449,1610.8,1610.7,8.48013859]
[1745110350850,19.26879,1610.8,1610.7,8.48013859]
[1745110351056,14.26879,1610.8,1610.7,8.48013859]
[1745110351252,21.49679,1610.8,1610.7,8.48013859]
[1745110351465,21.49679,1610.8,1610.7,4.24793859]
[1745110353561,1.24214,1610.5,1610.3,4.45]
[1745110353755,2.22655,1610.4,1610.3,4.45]
[1745110354154,4.45455,1610.4,1610.3,4.45]
[1745110354562,6.04805,1610.4,1610.3,4.45]
[1745110355556,6.04805,1610.4,1610.3,3.2078]
[1745110355956,6.04805,1610.4,1610.3,4.8017]
[1745110356161,6.04805,1610.4,1610.3,6.04392]
[1745110356362,4.8059,1610.4,1610.3,6.04392]
[1745110356559,6.04805,1610.4,1610.3,6.04392]
[1745110356757,6.04805,1610.4,1610.3,4.8017]
[1745110357156,3.82005,1610.4,1610.3,5.8525]
[1745110358056,3.82005,1610.4,1610.3,7.09472]
[1745110360065,6.04805,1610.4,1610.3,2.6447]
[1745110360458,6.04805,1610.4,1610.3,3.6058]
[1745110361672,4.45455,1610.4,1610.3,3.6058]
[1745110362171,2.22655,1610.4,1610.3,3.6058]
[1745110363069,4.45455,1610.4,1610.3,3.6058]
[1745110364773,4.45455,1610.4,1610.3,4.84802]
[1745110366768,3.47015,1610.4,1610.3,4.84802]
[1745110367276,1.24215,1610.4,1610.3,4.84802]
[1745110367774,5.24414,1610.5,1610.3,4.84802]
[1745110367975,5.24414,1610.5,1610.4,1.6108]
[1745110368272,7.47214,1610.5,1610.4,1.6108]
[1745110372479,8.56255,1610.8,1610.7,1.24191]
[1745110372677,4.4497,1610.8,1610.7,1.24191]
[1745110374278,4.4497,1610.8,1610.7,2.93161]
[1745110374480,4.44964,1610.8,1610.7,2.93161]
[1745110374783,3.2078,1610.8,1610.7,2.93161]
[1745110375374,37.40783,1610.9,1610.8,1.24184]
[1745110375577,32.163,1610.9,1610.8,2.93154]
[1745110375875,33.40471,1611.0,1610.9,1.24176]
[1745110376076,33.40471,1611.0,1610.9,4.96586]
[1745110376581,35.63271,1611.0,1610.9,3.7241]
[1745110381582,35.63271,1611.0,1610.9,4.96586]
[1745110381773,35.63271,1611.0,1610.9,3.7241]
[1745110381975,35.63271,1611.0,1610.9,4.96586]
[1745110383387,35.63271,1611.0,1610.9,3.7241]
[1745110383989,35.63271,1611.0,1610.9,4.96586]
[1745110384390,35.63271,1611.0,1610.9,3.7241]
[1745110384779,37.24741,1611.0,1610.9,1.6974]
[1745110385279,1.2418,1610.9,1610.8,1.6299]
[1745110385586,2.8565,1610.9,1610.8,2.87174]
[1745110385887,2.8565,1610.9,1610.8,1.6299]
[1745110386287,2.8565,1610.9,1610.8,2.87174]
[1745110389491,2.8565,1610.9,1610.8,1.6299]
[1745110389681,5.7966,1610.9,1610.6,1.24196]
[1745110389883,2.90658,1610.8,1610.7,1.24191]
[1745110390083,2.90658,1610.8,1610.7,1.6905]
[1745110390084,2.90654,1610.8,1610.7,1.6905]
[1745110390388,5.13454,1610.8,1610.7,1.6905]
[1745110390591,6.17994,1610.8,1610.7,1.6905]
[1745110391091,1.24191,1610.7,1610.6,1.0568]
[1745110391290,3.00221,1610.7,1610.6,1.5994]
[1745110392291,5.23021,1610.7,1610.6,2.84139]
[1745110392694,3.46991,1610.7,1610.6,2.84139]
[1745110393198,2.228,1610.7,1610.6,2.84139]
[1745110393398,3.46991,1610.7,1610.6,2.84139]
[1745110398096,2.228,1610.7,1610.6,2.84139]
[1745110398500,3.46991,1610.7,1610.6,2.84139]
[1745110399202,2.228,1610.7,1610.6,2.84139]
[1745110399791,3.46991,1610.7,1610.6,2.84139]
[1745110401097,1.24199,1610.6,1610.5,0.9813]
[1745110401296,4.01969,1610.6,1610.5,0.9813]
[1745110401498,4.01969,1610.6,1610.5,2.5706]
[1745110402297,6.24769,1610.6,1610.5,3.81267]
[1745110403194,37.51759,1611.0,1610.6,3.10499]
[1745110403399,37.51759,1611.0,1610.7,2.656]
[1745110403589,37.51759,1611.0,1610.8,1.6886]
[1745110403903,32.163,1611.0,1610.8,2.6553]
[1745110404087,33.40474,1611.0,1610.8,2.6553]
[1745110404402,33.40474,1611.0,1610.9,1.6886]
[1745110405283,35.05144,1611.0,1610.9,1.6886]